bitfinex/quotes_ETHUSD_20241109
["timestamp","ask_amount","ask_price","bid_price","bid_amount"]
[1731172624102,0.7894,2995.8,2995.7,0.094352]
[1731172624283,0.79635934,2995.8,2995.7,0.094352]
[1731172624979,0.7894,2995.8,2995.7,0.094352]
[1731172625174,0.7894,2996.1,2995.7,0.094352]
[1731172625413,0.04816387,2996.0,2995.7,0.094352]
[1731172625627,0.00695934,2995.8,2995.7,0.094352]
[1731172625788,0.04816387,2995.8,2995.7,0.094352]
[1731172626414,0.7894,2995.9,2995.7,0.094352]
[1731172626593,0.79635934,2995.9,2995.7,0.094352]
[1731172626927,0.7894,2995.9,2995.7,0.094352]
[1731172627123,0.7894,2996.3,2995.7,0.094352]
[1731172627325,0.04120453,2996.2,2995.7,0.094352]
[1731172627919,0.7894,2995.8,2995.7,0.094352]
[1731172628138,0.83060453,2995.8,2995.7,0.094352]
[1731172628787,1.66120853,2995.8,2995.7,0.094352]
[1731172628987,0.7894,2995.8,2995.7,0.094352]
[1731172629634,0.79635934,2995.8,2995.7,0.094352]
[1731172633138,0.87616387,2996.1,2995.7,0.094352]
[1731172634231,0.00695934,2995.9,2995.7,0.094352]
[1731172634713,0.04816387,2995.9,2995.7,0.094352]
[1731172635749,0.828,2995.8,2995.7,0.094352]
[1731172635953,0.86920453,2995.8,2995.7,0.094352]
[1731172639019,0.04120453,2995.8,2995.7,0.094352]
[1731172639368,0.04816387,2995.9,2995.7,0.094352]
[1731172640962,0.828,2995.8,2995.7,0.094352]
[1731172641467,1.26151593,2995.8,2995.7,0.094352]
[1731172642856,4.26151593,2995.8,2995.7,0.094352]
[1731172643062,4.56573487,2995.8,2995.7,0.094352]
[1731172643267,4.56573487,2995.8,2994.8,0.009]
[1731172643268,0.00695934,2994.2,2992.0,1.333681]
[1731172643451,0.00695934,2994.2,2991.5,0.009]
[1731172643452,0.00695934,2992.1,2991.5,0.009]
[1731172643961,0.00695934,2992.6,2991.6,0.7892]
[1731172644123,0.00695934,2992.6,2991.5,0.009]
[1731172644320,0.00695934,2992.6,2989.9,0.00304066]
[1731172644321,0.00695934,2991.4,2990.9,0.05100518]
[1731172644563,0.00695934,2991.5,2990.9,0.05100518]
[1731172644763,0.00695934,2991.6,2990.9,0.00100518]
[1731172644947,0.00695934,2991.8,2990.9,0.00100518]
[1731172645264,0.09054303,2992.0,2990.9,0.00100518]
[1731172645770,0.01,2991.9,2990.4,3.4589954]
[1731172645925,0.01,2991.9,2990.5,0.34589954]
[1731172646268,0.01,2991.0,2989.8,0.009]
[1731172646453,0.08359716,2991.4,2990.1,3.4589954]
[1731172646620,0.02,2991.8,2990.2,0.06686032]
[1731172646819,0.08357311,2992.1,2990.4,3.4589954]
[1731172647046,0.08357311,2992.1,2990.5,0.34589954]
[1731172647261,0.08357311,2992.1,2990.6,0.7892]
[1731172647860,0.01,2993.2,2990.5,0.34589954]
[1731172647861,0.848,2992.6,2990.9,0.7892]
[1731172648162,0.08355107,2992.5,2991.1,0.7892]
[1731172648364,3.33923,2994.7,2991.0,0.42481954]
[1731172648365,0.01,2993.3,2992.1,0.7892]
[1731172648670,0.01,2993.2,2992.2,0.42481954]
[1731172648869,0.01,2993.2,2992.1,0.7892]
[1731172649170,0.01,2993.6,2992.2,0.06682392]
[1731172649329,0.08351847,2993.6,2992.2,0.7516]
[1731172649530,0.02,2993.8,2992.2,0.7516]
[1731172649763,0.02,2993.8,2992.4,0.7516]
[1731172649969,0.09351677,2994.0,2992.5,4.0089954]
[1731172650175,0.08351677,2994.0,2992.6,0.7516]
[1731172650461,2.25832032,2994.1,2992.6,0.7516]
[1731172650462,1.49832032,2994.1,2992.6,0.7516]
[1731172650669,1.49832032,2994.1,2992.8,0.7516]
[1731172650864,1.49832032,2994.1,2993.1,0.55]
[1731172651022,1.49832032,2994.1,2993.7,3.4589954]
[1731172651223,0.09348587,2995.1,2993.8,0.7516]
[1731172651463,0.09348587,2995.1,2993.9,0.42105954]
[1731172651464,0.08348587,2995.1,2993.9,0.42105954]
[1731172651665,0.75,2995.3,2994.0,0.06678051]
[1731172651880,0.01,2995.5,2994.1,0.7516]
[1731172652026,0.31519314,2997.3,2993.9,0.42105954]
[1731172652027,0.01,2996.0,2994.5,3.4589954]
[1731172652231,0.01,2995.9,2994.6,0.7516]
[1731172652474,0.09345386,2995.9,2994.7,0.42105954]
[1731172652832,0.01,2996.0,2994.7,0.42105954]
[1731172653029,0.01,2995.9,2994.7,0.42105954]
[1731172653252,0.09345349,2996.2,2994.7,0.42105954]
[1731172653772,0.01,2996.0,2994.7,0.42105954]
[1731172653945,0.01,2995.9,2994.7,0.42105954]
[1731172654143,0.01,2996.0,2994.7,0.42105954]
[1731172654348,0.01,2995.9,2994.7,0.42105954]
[1731172654653,0.01,2996.2,2994.9,3.4589954]
[1731172654858,0.01,2996.6,2995.4,0.7516]
[1731172655233,0.02,2996.8,2995.4,0.7516]
[1731172655475,0.02,2997.0,2995.4,0.7516]
[1731172655774,0.10343177,2997.2,2995.5,0.55]
[1731172656064,0.10343177,2997.2,2995.2,3.89475666]
[1731172656065,0.02,2997.0,2995.6,0.7516]
[1731172656277,0.01,2997.0,2995.6,0.7516]
[1731172656441,0.02,2997.0,2995.6,0.7516]
[1731172656645,0.01,2997.2,2995.7,0.55]
[1731172656941,0.01,2997.1,2995.7,0.55]
[1731172657465,0.01,2997.0,2995.6,0.7516]
[1731172657640,0.01,2996.7,2995.6,0.7516]
[1731172657973,0.08343525,2997.0,2995.6,0.7516]
[1731172658200,0.01,2996.6,2995.6,0.7516]
[1731172658407,0.02,2996.6,2995.6,0.7516]
[1731172658690,0.75,2997.1,2994.8,0.7516]
[1731172658691,0.01,2996.0,2994.8,0.7516]
[1731172659097,0.75,2996.2,2994.8,0.7516]
[1731172659457,0.75,2996.6,2994.9,3.89475666]
[1731172659663,0.75,2996.6,2995.1,0.7516]
[1731172661408,0.76,2996.6,2995.1,0.7516]
[1731172661618,0.75,2996.6,2995.1,0.7516]
[1731172661769,0.75,2995.8,2994.3,0.7516]
[1731172662102,0.01,2996.4,2994.3,0.7516]
[1731172662103,0.75,2996.2,2994.3,0.7516]
[1731172662620,0.75,2996.2,2994.7,0.7516]
[1731172662899,0.75,2996.2,2994.8,0.46463567]
[1731172663286,0.75,2996.2,2994.9,0.55]
[1731172663613,0.75,2996.6,2995.1,4.44475666]
[1731172664101,0.09343194,2996.5,2994.8,0.46463567]
[1731172664304,0.75,2995.3,2994.2,1.40450984]
[1731172664465,0.75,2995.3,2994.2,0.7516]
[1731172664668,0.09346801,2995.2,2994.2,0.7516]
[1731172664868,0.08346801,2995.2,2994.2,0.7516]
[1731172665068,0.01,2996.3,2993.6,3.89475666]
[1731172665069,0.08347409,2996.3,2994.8,3.89475666]
[1731172665385,0.01,2996.4,2995.0,0.7516]
[1731172665698,0.02,2996.4,2995.0,0.7516]
[1731172666099,0.02,2996.4,2994.9,0.38947567]
[1731172666100,0.01,2996.4,2994.9,0.38947567]
[1731172666274,0.01,2996.2,2994.9,0.38947567]
[1731172666469,0.01,2995.5,2994.1,0.7516]
[1731172666671,0.01,2995.7,2994.1,0.7516]
[1731172666870,0.01,2996.0,2994.1,0.7516]
[1731172667377,0.01,2995.6,2994.1,0.7516]
[1731172668004,0.01,2995.6,2993.8,4.41712545]
[1731172668005,0.75,2994.2,2993.8,0.52236879]
[1731172668497,0.01,2993.5,2991.8,0.7516]
[1731172668679,0.76,2993.5,2992.9,0.52262892]
[1731172668868,0.76,2993.5,2991.8,0.7516]
[1731172668869,0.76,2993.5,2991.9,0.33853113]
[1731172669072,0.75,2993.5,2992.1,3.89475666]
[1731172669305,0.75,2993.5,2992.2,0.38947567]
[1731172669717,0.08351407,2993.4,2992.2,0.38947567]
[1731172669916,0.76,2993.5,2992.2,0.38947567]
[1731172669917,0.75,2993.5,2992.2,0.38947567]
[1731172670812,0.01,2993.9,2992.2,0.38947567]
[1731172670813,0.8301,2993.9,2992.3,0.88401259]
[1731172670986,0.8301,2993.9,2992.6,3.89475666]
[1731172671308,0.8301,2993.9,2992.7,0.38947567]
[1731172672215,0.8301,2993.9,2992.2,3.38947567]
[1731172672216,0.01,2993.3,2992.2,3.38947567]
[1731172672418,0.01,2993.5,2992.2,0.38947567]
[1731172672586,0.02,2993.5,2991.7,0.8172]
[1731172672780,0.01,2993.3,2991.7,0.8172]
[1731172672982,0.01,2993.1,2991.9,1.01612493]
[1731172673177,0.01,2993.1,2991.7,0.8172]
[1731172673178,0.09353869,2993.1,2991.7,0.8172]
[1731172673382,0.09353869,2993.1,2991.8,0.47119567]
[1731172673999,0.8301,2992.5,2991.6,0.33877919]
[1731172674198,0.8301,2992.5,2991.5,0.52279462]
[1731172674376,0.8301,2992.5,2991.3,0.66838029]
[1731172674580,0.8301,2992.5,2991.6,3.89475666]
[1731172675092,0.8301,2993.0,2991.7,0.8840307]
[1731172675290,0.8301,2993.0,2991.8,0.47787874]
[1731172675612,0.8301,2993.0,2992.1,3.89475666]
[1731172675987,0.01,2994.3,2992.8,0.8172]
[1731172676192,0.01,2994.2,2992.8,0.8172]
[1731172676387,0.01,2994.3,2992.8,0.8172]
[1731172676388,0.01,2994.3,2992.9,0.47119567]
[1731172676591,0.8401,2994.5,2993.0,0.06679921]
[1731172676786,0.8401,2994.5,2993.3,0.55]
[1731172676787,0.8301,2994.5,2993.3,0.55]
[1731172676989,0.8301,2994.5,2993.5,0.55]
[1731172678508,0.8301,2995.2,2993.8,3.55]
[1731172679202,0.8301,2995.2,2993.9,1.22445025]
[1731172679388,0.01,2995.8,2994.2,3.89475666]
[1731172679596,0.8301,2995.7,2994.3,1.0062412]
[1731172679903,0.8301,2995.7,2994.4,0.55]
[1731172680090,0.8301,2996.4,2994.7,3.89475666]
[1731172680284,0.8401,2996.4,2994.8,0.55]
[1731172680483,0.8301,2996.4,2994.8,0.55]
[1731172680808,0.8301,2996.4,2995.0,0.55]
[1731172681523,0.8401,2996.4,2995.0,0.55]
[1731172681725,0.8301,2996.4,2995.0,0.55]
[1731172682025,0.8401,2996.4,2995.0,0.55]
[1731172682610,0.8301,2996.4,2995.0,0.55]
[1731172682917,0.8301,2996.4,2995.2,4.44475666]
[1731172683082,0.8301,2996.4,2995.3,0.52619567]
[1731172683278,0.8301,2996.4,2995.4,0.55]
[1731172683529,0.8301,2996.4,2995.7,3.89475666]
[1731172683728,0.8301,2996.9,2995.7,3.89475666]
[1731172684026,0.8301,2996.9,2995.8,0.55]
[1731172684337,0.08341726,2997.9,2996.7,3.89475666]
[1731172684556,0.8401,2998.2,2996.8,0.0667146]
[1731172684708,0.8401,2998.2,2996.9,0.55]
[1731172684906,0.8301,2998.2,2996.9,1.3672]
[1731172685217,0.8301,2998.2,2997.2,3.89475666]
[1731172685420,0.8301,2998.2,2997.3,0.38947567]
[1731172687355,0.8401,2998.6,2997.3,0.38947567]
[1731172687846,0.01,2998.7,2997.3,0.38947567]
[1731172688048,0.8301,2998.9,2997.4,1.43389867]
[1731172688238,0.8301,2998.9,2997.6,0.55]
[1731172688744,0.01,2998.8,2997.5,0.48233743]
[1731172688953,0.09337146,2998.8,2997.5,0.48233743]
[1731172689124,0.09337146,2998.8,2997.4,0.8172]
[1731172689125,0.01,2998.7,2997.4,0.8172]
[1731172689813,0.01,2998.7,2997.5,0.0667]
[1731172690245,0.8401,2998.9,2997.4,0.8172]
[1731172690458,0.02,2998.7,2997.4,0.8172]
[1731172692976,0.8401,2998.9,2997.5,0.06669979]
[1731172693131,0.8301,2998.9,2997.6,3.89475666]
[1731172693333,0.8301,2998.9,2997.7,0.44447567]
[1731172693559,0.8301,2998.9,2997.8,0.06669245]
[1731172694134,0.8301,2998.9,2997.7,0.44447567]
[1731172694467,0.8301,2998.9,2997.8,0.06669246]
[1731172694830,0.8263,2999.3,2997.8,0.55]
[1731172695176,0.1479537,2999.8,2998.1,0.55]
[1731172695330,0.9642537,2999.8,2998.4,3.89475666]
[1731172695665,0.01,2999.5,2998.4,3.89475666]
[1731172695885,0.01,2999.5,2998.2,1.22907567]
[1731172695886,0.8263,2999.1,2997.8,0.7846]
[1731172696466,0.8163,2999.1,2997.8,0.7846]
[1731172696847,0.8163,2999.1,2997.9,0.06668826]
[1731172697053,0.8163,2999.1,2998.0,0.55]
[1731172697275,0.01,2999.3,2997.9,0.55]
[1731172697489,0.01,2999.3,2998.1,3.89475666]
[1731172697788,0.01,2999.3,2998.2,0.93947567]
[1731172698191,0.8163,2999.5,2998.3,0.06668228]
[1731172698397,0.1479537,2999.8,2998.6,3.89475666]
[1731172698688,0.01,2999.6,2998.6,3.89475666]
[1731172698889,0.8163,2999.5,2998.3,0.7846]
[1731172699090,0.8163,2999.5,2998.5,0.55]
[1731172699298,0.1379537,2999.8,2998.7,0.55]
[1731172699984,0.1379537,2999.8,2998.6,3.89475666]
[1731172701293,0.1379537,2999.8,2998.7,0.55]
[1731172702495,0.1379537,2999.8,2999.1,3.89475666]
[1731172702664,0.1379537,2999.8,2999.2,0.45614328]
[1731172703473,0.1379537,2999.8,2999.2,0.38947567]
[1731172703673,0.1379537,2999.8,2998.8,0.7846]
[1731172703674,0.1379537,2999.8,2998.9,0.55]
[1731172703874,0.01,2999.3,2998.4,0.47240757]
[1731172704073,0.8163,2999.2,2998.4,0.47240757]
[1731172704308,0.8163,2999.2,2997.7,0.7846]
[1731172704673,0.01,2999.0,2997.7,0.7846]
[1731172705112,0.01,2999.2,2998.1,3.89475666]
[1731172705411,0.01,2999.6,2998.2,0.06668017]
[1731172705412,0.01,2999.5,2998.2,0.06668017]
[1731172705576,0.01,2999.5,2998.1,3.89475666]
[1731172705577,0.01,2999.6,2998.3,0.39614368]
[1731172705771,0.8263,2999.7,2998.3,0.39614368]
[1731172706110,0.8163,2999.7,2998.4,0.7846]
[1731172706410,0.8163,2999.7,2998.7,0.55]
[1731172706707,0.8263,2999.4,2997.8,0.7846]
[1731172706914,0.8163,2999.4,2998.0,3.89475666]
[1731172707072,0.8163,2999.4,2998.1,3.0]
[1731172707275,0.8163,2999.4,2998.2,0.68947567]
[1731172707832,0.8163,2999.4,2998.3,0.55]
[1731172707973,0.8163,2999.4,2998.3,0.61667999]
[1731172708173,0.8163,2999.4,2998.4,0.7846]
[1731172708488,0.8163,2999.4,2998.5,0.55]
[1731172708688,0.9542537,2999.8,2998.5,0.55]
[1731172708885,0.9542537,2999.8,2998.5,4.44475666]
[1731172709084,0.9542537,2999.8,2998.7,0.55]
[1731172709575,0.9542537,2999.8,2998.6,3.52293567]
[1731172709780,0.01,2999.7,2998.6,0.52293567]
[1731172709973,0.756,2999.4,2998.1,0.55]
[1731172710173,0.09335329,2999.3,2998.0,0.7678]
[1731172710494,0.756,2998.6,2997.4,3.89475666]
[1731172710828,0.756,2998.6,2997.5,0.38947567]
[1731172711619,0.756,2998.6,2997.5,3.38947567]
[1731172712134,0.08336755,3000.2,2998.8,3.55]
[1731172712305,0.756,3000.5,2999.5,0.55]
[1731172712935,0.756,3000.9,2999.6,0.83445414]
[1731172713230,0.01,3000.8,2999.6,0.7678]
[1731172713811,0.766,3000.9,2999.6,0.7678]
[1731172714151,0.01,3000.9,2999.2,0.7678]
[1731172714427,0.756,2999.7,2997.9,3.89475666]
[1731172714644,0.756,2999.7,2997.7,3.16049476]
[1731172714645,0.756,2999.7,2998.4,3.89475666]
[1731172715932,0.01,2999.6,2998.4,3.89475666]
[1731172716604,0.756,2999.7,2998.4,3.89475666]
[1731172716794,0.756,2999.7,2998.6,0.55]
[1731172717193,0.756,2999.7,2998.7,0.8344717]
[1731172717429,0.756,2999.7,2998.8,0.55]
[1731172717635,0.756,2999.7,2998.9,3.89475666]
[1731172717993,0.756,2999.7,2999.0,0.55]
[1731172718194,0.756,2999.7,2999.1,0.44447567]
[1731172718827,0.756,3000.3,2999.1,0.44447567]
[1731172719001,0.756,3000.3,2999.2,0.55]
[1731172720835,0.756,3000.3,2999.1,0.44447567]
[1731172720836,0.766,3000.3,2999.1,0.44447567]
[1731172721309,0.756,3000.3,2999.2,0.55]
[1731172721697,0.756,3000.3,2999.4,3.89475666]
[1731172721933,0.756,3000.3,2999.5,0.38947567]
[1731172722237,0.756,3000.3,2999.6,0.06665763]
[1731172724153,0.756,3000.3,2999.8,3.89475666]
[1731172724431,0.756,3000.3,2999.9,0.06665348]
[1731172724735,0.756,3001.0,2999.9,0.06665348]
[1731172724908,0.756,3001.0,3000.2,3.89475666]
[1731172725322,0.756,3001.0,3000.3,0.55]
[1731172725522,0.756,3001.0,3000.3,3.55]
[1731172726108,0.756,3001.0,3000.4,0.06663897]
[1731172726310,0.756,3001.0,3000.3,3.55]
[1731172726614,0.756,3001.0,3000.4,0.74447567]
[1731172726924,0.756,3001.6,3000.8,0.55]
[1731172727120,0.08329418,3002.6,3001.4,0.55]
[1731172727121,0.766,3002.2,3001.4,0.55]
[1731172727435,0.766,3002.2,3001.5,0.44447567]
[1731172727640,0.766,3002.2,3001.4,3.89475666]
[1731172727947,0.72867647,3002.7,3001.9,3.89475666]
[1731172728102,0.72867647,3002.7,3002.0,0.06660556]
[1731172728300,0.72867647,3002.7,3001.9,3.89475666]
[1731172728627,0.72867647,3002.7,3002.0,0.45608097]
[1731172728959,0.72867647,3002.7,3002.0,0.38947567]
[1731172729101,0.72867647,3002.7,3002.1,0.55]
[1731172729459,0.08325663,3004.0,3002.1,0.55]
[1731172729460,0.7809,3005.0,3003.4,0.55]
[1731172729624,0.7809,3005.0,3004.0,3.89475666]
[1731172729936,0.7809,3005.0,3003.5,0.06655534]
[1731172729937,0.7809,3005.0,3003.6,3.0]
[1731172730243,0.0120318,3005.4,3003.7,0.55]
[1731172730244,0.7809,3004.8,3003.7,0.55]
[1731172730446,0.7809,3004.8,3003.9,0.55]
[1731172730742,0.7809,3004.8,3003.5,3.89475666]
[1731172731098,0.7809,3004.6,3003.1,3.0]
[1731172731303,0.7809,3004.6,3003.2,0.55]
[1731172732141,0.7809,3004.6,3003.5,3.89475666]
[1731172732327,0.7809,3004.6,3003.6,0.45604208]
[1731172732844,0.7809,3004.6,3003.6,0.38947567]
[1731172734750,0.7809,3004.6,3003.2,0.55]
[1731172735053,0.7809,3004.6,3002.9,0.8267]
[1731172735207,0.7809,3004.6,3003.0,0.55]
[1731172735403,0.80568902,3004.5,3003.2,3.0]
[1731172735633,0.80568902,3004.5,3002.8,3.0]
[1731172735832,0.80568902,3004.5,3003.1,3.89475666]
[1731172736041,0.80568902,3004.5,3003.6,3.89475666]
[1731172736042,0.7809,3004.5,3003.6,3.89475666]
[1731172737348,0.7809,3004.5,3003.2,3.0]
[1731172738042,0.7809,3004.5,3003.4,0.55]
[1731172738251,0.7809,3004.5,3003.2,3.0]
[1731172738410,0.7809,3004.9,3004.0,3.89475666]
[1731172738611,0.7809,3004.9,3004.1,0.06655653]
[1731172738859,0.7809,3004.9,3004.1,3.06655653]
[1731172739061,0.7809,3004.9,3004.0,3.89475666]
[1731172739348,0.7809,3004.9,3003.7,0.55]
[1731172739557,0.7809,3004.9,3004.0,3.89475666]
[1731172739721,0.7809,3004.9,3004.1,0.06655653]
[1731172740056,0.7809,3004.9,3004.2,0.55]
[1731172740421,0.7809,3004.9,3004.4,0.55]
[1731172740647,0.7809,3004.9,3004.5,0.0665493]
[1731172741148,0.1379537,3005.8,3004.6,3.55]
[1731172741149,0.7713,3005.7,3004.6,3.55]
[1731172741349,0.7713,3005.7,3004.7,0.74447567]
[1731172741712,0.7713,3005.7,3004.8,0.06654119]
[1731172741914,0.7713,3005.7,3005.0,3.89475666]
[1731172742164,0.7713,3005.7,3005.1,0.55]
[1731172742325,0.7713,3005.7,3005.2,0.44447567]
[1731172742529,0.7713,3005.7,3005.3,0.06653379]
[1731172743061,0.1379537,3005.8,3005.2,0.44447567]
[1731172743236,0.1379537,3005.8,3004.6,3.89475666]
[1731172743445,0.7713,3005.7,3004.2,3.89475666]
[1731172743628,0.1379537,3005.8,3004.3,3.0]
[1731172743629,0.7713,3005.5,3004.3,3.0]
[1731172744048,0.7713,3005.5,3004.4,0.06654804]
[1731172744273,0.7713,3005.5,3004.6,3.89475666]
[1731172744460,0.7713,3005.5,3004.7,0.06654274]
[1731172744882,0.7713,3005.5,3004.3,3.0]
[1731172745179,0.7713,3005.5,3004.4,1.30601881]
[1731172745333,0.7713,3005.5,3004.7,0.55]
[1731172745533,0.7713,3005.5,3004.7,4.3394]
[1731172745766,0.1379537,3005.8,3005.1,0.55]
[1731172745953,0.1379537,3005.8,3005.0,3.89475666]
[1731172745954,0.7713,3005.7,3004.8,0.55]
[1731172746165,0.7713,3005.7,3004.8,1.29447567]
[1731172746377,0.7713,3005.7,3004.9,0.06654065]
[1731172746582,0.7713,3005.7,3004.8,1.29447567]
[1731172747283,0.7713,3005.7,3005.2,0.55]
[1731172747439,0.1379537,3005.8,3005.2,0.55]
[1731172747943,0.1379537,3005.8,3005.4,0.55]
[1731172748574,0.1379537,3005.8,3004.3,0.01]
[1731172748575,0.7713,3005.7,3004.6,3.89475666]
[1731172749975,0.7713,3005.7,3004.7,3.55]
[1731172750476,0.7713,3005.7,3004.9,0.55]
[1731172750673,0.7713,3005.7,3005.0,0.06654038]
[1731172750984,0.7713,3005.7,3004.8,0.55]
[1731172751147,0.7713,3005.7,3004.9,0.355]
[1731172751678,0.7713,3005.7,3004.2,0.7894]
[1731172751679,0.81,3005.5,3003.8,0.8281]
[1731172751834,0.1379537,3005.8,3003.8,0.8281]
[1731172751835,0.81,3005.3,3003.8,0.8281]
[1731172752035,0.81,3005.3,3003.7,3.89475666]
[1731172752254,0.81,3005.3,3003.8,0.38947567]
[1731172752656,0.81,3005.3,3003.9,0.06655436]
[1731172752871,0.81,3005.6,3004.6,3.89475666]
[1731172753057,0.81,3005.6,3004.7,0.8281]
[1731172753286,0.1379537,3005.8,3004.7,0.8281]
[1731172753287,0.1379537,3005.8,3004.8,0.55]
[1731172753456,0.1379537,3005.8,3005.1,0.55]
[1731172753661,0.1379537,3005.8,3005.3,0.55]
[1731172753872,0.1379537,3005.8,3005.5,0.55]
[1731172754253,0.1379537,3005.8,3005.3,0.55]
[1731172756090,0.1379537,3005.8,3005.5,0.55]
[1731172756290,0.1379537,3005.8,3005.6,0.06652919]
[1731172756905,0.1379537,3005.8,3005.5,0.55]
[1731172757209,0.1379537,3005.8,3005.3,0.55]
[1731172757389,0.1379537,3005.8,3005.5,0.55]
[1731172757776,0.1379537,3005.8,3005.7,0.55]
[1731172758796,0.1379537,3005.8,3005.6,0.06652502]
[1731172758797,0.1379537,3005.8,3005.6,0.55]
[1731172759111,0.1379537,3005.8,3005.7,0.61652383]
[1731172759609,0.1379537,3005.8,3005.5,0.55]
[1731172760118,0.1379537,3005.8,3005.7,0.55]
[1731172761024,0.1379537,3005.8,3005.5,0.55]
[1731172761193,0.1379537,3005.8,3005.7,0.55]
[1731172761522,0.1379537,3005.8,3005.5,0.55]
[1731172763023,0.1379537,3005.8,3005.7,0.55]
[1731172763384,0.1379537,3005.8,3005.5,0.55]
[1731172765584,0.7613,3005.7,3005.3,0.55]
[1731172765785,0.7613,3005.7,3004.7,4.20380837]
[1731172766025,0.7613,3005.7,3004.8,0.42038084]
[1731172766386,0.7613,3005.7,3004.5,3.44030837]
[1731172766586,0.7613,3005.7,3004.3,0.7635]
[1731172766921,0.7613,3005.7,3004.4,0.06654459]
[1731172767497,0.7613,3005.7,3004.7,3.44030837]
[1731172767766,0.7613,3005.7,3005.1,3.44030837]
[1731172768034,0.7613,3005.7,3005.2,0.41056517]
[1731172768331,0.7613,3005.7,3005.2,0.34403084]
[1731172768504,0.7613,3005.7,3004.4,0.7635]
[1731172768706,0.7613,3005.7,3004.5,3.0]
[1731172769221,0.7943,3005.5,3003.6,0.7635]
[1731172769393,0.7943,3005.3,3003.9,3.44030837]
[1731172769742,0.1379537,3005.8,3004.0,0.41058303]
[1731172769743,0.81908902,3005.2,3004.0,0.41058303]
[1731172770043,0.81908902,3005.2,3003.7,3.44030837]
[1731172770534,0.7943,3005.2,3003.8,0.06655788]
[1731172771048,0.7943,3005.2,3003.8,3.0]
[1731172771348,0.7943,3005.2,3003.8,6.87321268]
[1731172771855,0.7943,3005.2,3003.9,0.55]
[1731172772162,0.7943,3005.2,3004.1,0.55]
[1731172772942,0.7943,3005.2,3003.6,4.63671268]
[1731172773250,12.39478902,3005.7,3002.9,4.63531268]
[1731172773251,0.81908902,3005.1,3002.9,4.63531268]
[1731172773456,0.82908902,3005.1,3002.9,4.63531268]
[1731172773757,0.82908902,3005.1,3003.0,0.46353127]
[1731172773758,0.7943,3004.9,3003.0,0.46353127]
[1731172773962,0.81908902,3004.8,3003.0,0.53010426]
[1731172774268,0.81908902,3004.8,3003.0,0.46353127]
[1731172774561,0.81908902,3004.8,3003.3,3.87321268]
[1731172775559,0.81908902,3004.8,3003.4,3.06657056]
[1731172776122,0.81908902,3004.8,3003.5,0.55]
[1731172776458,0.81908902,3004.8,3003.7,0.55]
[1731172776818,0.81908902,3004.8,3003.5,0.55]
[1731172777058,0.81908902,3004.8,3003.5,0.905]
[1731172777257,0.81908902,3004.8,3003.1,0.5098844]
[1731172777258,0.7943,3004.8,3003.1,0.5098844]
[1731172777461,0.7943,3004.8,3002.7,3.0]
[1731172777462,0.7943,3004.6,3003.2,0.06657987]
[1731172777624,0.01,3004.8,3002.8,0.06657924]
[1731172777625,0.7943,3004.4,3002.8,0.06657924]
[1731172777817,0.7943,3004.2,3002.8,0.06657924]
[1731172778624,0.7943,3004.2,3002.7,3.0]
[1731172778853,0.81908902,3004.1,3002.2,4.63531268]
[1731172779061,0.81908902,3004.1,3000.4,2.279]
[1731172779062,0.81908902,3004.1,3002.3,0.46353127]
[1731172779232,0.81908902,3004.1,3002.0,3.87321268]
[1731172779432,0.7943,3004.0,3002.0,3.87321268]
[1731172779625,0.81908902,3003.9,3002.0,3.87321268]
[1731172779874,0.81908902,3003.9,3002.1,0.06659304]
[1731172780325,0.81908902,3003.9,3002.2,0.55]
[1731172780531,0.7943,3003.8,3002.4,4.42321268]
[1731172780757,0.40669792,3003.9,3002.5,0.06659307]
[1731172780758,0.81908902,3003.7,3002.5,0.06659307]
[1731172780958,0.7943,3003.7,3002.6,0.55]
[1731172781155,0.7943,3003.7,3002.8,0.55]
[1731172781630,0.7943,3003.7,3002.6,0.55]
[1731172781825,0.7943,3003.7,3002.8,0.55]
[1731172782927,0.7943,3004.2,3003.4,0.55]
[1731172783130,0.7943,3004.2,3003.3,3.0]
[1731172783372,0.7943,3004.2,3002.4,0.49562115]
[1731172783373,0.7943,3004.2,3002.6,0.55]
[1731172783851,0.7943,3004.0,3002.4,3.0]
[1731172784162,0.7943,3003.8,3002.5,0.68732127]
[1731172784568,0.7943,3003.8,3002.6,0.06658872]
[1731172784943,0.7943,3003.8,3002.8,3.0]
[1731172785146,0.7943,3004.5,3003.1,3.87321268]
[1731172785367,0.7943,3004.5,3003.2,3.46353127]
[1731172785677,0.7943,3004.5,3003.3,0.61656574]
[1731172785848,0.7943,3004.5,3003.3,0.55]
[1731172786658,0.7943,3004.5,3003.2,3.55]
[1731172786869,0.7943,3004.5,3003.4,0.55]
[1731172787082,0.7943,3004.5,3003.6,0.55]
[1731172787234,0.7943,3004.5,3003.8,0.55]
[1731172787435,0.7943,3004.5,3003.6,0.55]
[1731172787837,0.7943,3004.5,3003.4,0.55]
[1731172789934,0.7943,3004.5,3003.3,0.355]
[1731172790276,0.7691,3005.4,3003.7,3.0]
[1731172790572,0.7691,3005.2,3003.7,3.0]
[1731172790737,0.79388902,3005.1,3003.8,0.3]
[1731172791083,0.79388902,3005.1,3003.9,0.0665607]
[1731172791294,0.79388902,3005.1,3003.2,3.0]
[1731172791295,0.79388902,3005.1,3004.0,0.55]
[1731172791583,0.79388902,3005.1,3003.0,0.8002]
[1731172791584,0.79388902,3005.1,3003.8,0.55]
[1731172792586,0.79388902,3005.1,3004.0,0.55]
[1731172792854,0.7691,3005.1,3004.2,0.55]
[1731172793183,0.7691,3005.1,3004.3,0.42820947]